[Event "GER-chW 2019"]
[Site "Magdeburg"]
[Date "2019.05.28"]
[Round "4.8"]
[White "Lowke, Kathrin"]
[Black "Braun, Kristin"]
[Result "1/2-1/2"]
[ECO "B78"]
[WhiteElo "1887"]
[BlackElo "1895"]
[Annotator "NA"]
[PlyCount "62"]
[EventDate "2019.05.26"]
[EventType "tourn"]
[EventCountry "GER"]
[SourceTitle "playchess.com"]
[Source "ChessBase"]
[SourceQuality "1"]
[TimeControl "40/5400+30:1800+30"]

1. e4 {[%emt 0:00:00]} c5 {[%emt 0:00:00]} 2. Nf3 {[%emt 0:00:00]} d6 {[%emt 0:00:00]} 3. d4 {[%emt 0:00:00]} cxd4 {[%emt 0:00:00]} 4. Nxd4 {[%emt 0:00:00]} Nf6 {[%emt 0:00:00]} 5. Nc3 {[%emt 0:00:40]} g6 {[%emt 0:00:00]} 6. f3 {[%emt 0:04:18]} Bg7 {[%emt 0:00:00]} 7. Be3 {[%emt 0:00:05]} Nc6 {[%emt 0:00:00]} 8. Qd2 {[%emt 0:00:21]} O-O {[%emt 0:00:05]} 9. Bc4 {[%emt 0:00:34]} Bd7 {[%emt 0:00:06]} 10. O-O-O {[%emt 0:00:59]} Rc8 {[%emt 0:00:06]} 11. Bb3 {[%emt 0:00:58]} Ne5 {[%emt 0:00:24]} 12. h4 {[%emt 0:03:24]} h5 {[%emt 0:00:49]} 13. Bh6 {[%emt 0:00:57]} Qa5 {[%emt 0:08:52]} 14. Bxg7 {[%emt 0:01:34]} Kxg7 {[%emt 0:00:33]} 15. Kb1 {[%emt 0:00:26]} Nc4 {[%emt 0:05:12]} 16. Bxc4 {[%emt 0:10:57]} Rxc4 {[%emt 0:00:01]} 17. Nb3 {[%emt 0:01:53]} Qb4 {[%emt 0:07:06]} 18. Qg5 {[%emt 0:04:13]} Rfc8 {[%emt 0:08:43]} 19. Rd2 {[%emt 0:10:26]} Be6 {[%emt 0:09:25]} 20. Re1 {[%emt 0:11:05]} Rxc3 {[%emt 0:05:32]} 21. bxc3 {[%emt 0:00:37]} Rxc3 {[%emt 0:00:53]} 22. Red1 {[%emt 0:05:33]} a5 {[%emt 0:06:50]} 23. Rd4 {[%emt 0:01:08]} Qb6 {[%emt 0:11:28]} 24. Qd2 {[%emt 0:00:54]} Rc5 {[%emt 0:01:51]} 25. Ka1 {[%emt 0:01:19]} Rb5 {[%emt 0:01:31]} 26. Ra4 {[%emt 0:02:54]} Bxb3 {[%emt 0:09:29]} 27. cxb3 {[%emt 0:01:07]} Rc5 {[%emt 0:02:23]} 28. b4 {[%emt 0:03:45]} axb4 {[%emt 0:01:58]} 29. Rxb4 {[%emt 0:04:59]} Qc6 {[%emt 0:01:17]} 30. Rb2 {[%emt 0:00:26]} Nd7 {[%emt 0:01:52]} 31. Rdb1 {[%emt 0:01:36]} b6 {[%emt 0:00:44]} 1/2-1/2

[Event "GER-chW 2019"]
[Site "Magdeburg"]
[Date "2019.05.28"]
[Round "4.9"]
[White "Perez Celis, Alba"]
[Black "Ley, Sabrina"]
[Result "1/2-1/2"]
[ECO "B23"]
[WhiteElo "1822"]
[BlackElo "1870"]
[Annotator "NA"]
[PlyCount "85"]
[EventDate "2019.05.26"]
[EventType "tourn"]
[EventCountry "GER"]
[SourceTitle "playchess.com"]
[Source "ChessBase"]
[SourceQuality "1"]
[TimeControl "40/5400+30:1800+30"]

1. e4 {[%emt 0:00:00]} c5 {[%emt 0:00:00]} 2. Nc3 {[%emt 0:00:00]} a6 {[%emt 0:00:00]} 3. g3 {[%emt 0:00:00]} b5 {[%emt 0:00:00]} 4. Bg2 {[%emt 0:00:04]} Bb7 {[%emt 0:00:00]} 5. a3 {[%emt 0:01:26]} e6 {[%emt 0:00:02]} 6. Nge2 {[%emt 0:00:29]} d5 {[%emt 0:02:36]} 7. exd5 {[%emt 0:00:16]} exd5 {[%emt 0:01:04]} 8. d4 {[%emt 0:00:17]} b4 {[%emt 0:26:57]} 9. axb4 {[%emt 0:00:47]} cxb4 {[%emt 0:06:59]} 10. Na4 {[%emt 0:00:37]} Nd7 {[%emt 0:03:05]} 11. O-O {[%emt 0:00:57]} Ngf6 {[%emt 0:02:36]} 12. c4 {[%emt 0:08:30]} bxc3 {[%emt 0:02:43]} 13. Naxc3 {[%emt 0:00:17]} Be7 {[%emt 0:03:46]} 14. Bg5 {[%emt 0:07:40]} O-O {[%emt 0:03:00]} 15. Nf4 {[%emt 0:03:55]} Nb6 {[%emt 0:10:12]} 16. Re1 {[%emt 0:02:49]} h6 {[%emt 0:02:27]} 17. Bxf6 {[%emt 0:01:18]} Bxf6 {[%emt 0:00:08]} 18. Qd3 {[%emt 0:37:02]} Qd6 {[%emt 0:01:23]} 19. Rad1 {[%emt 0:01:28]} Rfd8 {[%emt 0:02:31]} 20. Nh5 {[%emt 0:01:04]} Nc4 {[%emt 0:06:17]} 21. Qf3 {[%emt 0:01:43]} Be7 {[%emt 0:10:49]} 22. Qg4 {[%emt 0:04:05]} Bf8 {[%emt 0:00:29]} 23. Nxd5 {[%emt 0:00:33]} Bxd5 {[%emt 0:06:23]} 24. Bxd5 {[%emt 0:00:10]} Rac8 {[%emt 0:00:08]} 25. b3 {[%emt 0:12:37]} Na5 {[%emt 0:05:04]} 26. Bxf7+ {[%emt 0:01:51]} Kxf7 {[%emt 0:01:23]} 27. Qf5+ {[%emt 0:00:06]} Kg8 {[%emt 0:00:41]} 28. Qxa5 {[%emt 0:00:06]} Rb8 {[%emt 0:02:02]} 29. Nf4 {[%emt 0:04:19]} Rxb3 {[%emt 0:00:35]} 30. Qa2 {[%emt 0:00:11]} Qa3 {[%emt 0:00:39]} 31. Qe2 {[%emt 0:05:17]} Rb2 {[%emt 0:00:29]} 32. Qc4+ {[%emt 0:02:12]} Kh7 {[%emt 0:00:12]} 33. Rd3 {[%emt 0:00:50]} Qa2 {[%emt 0:00:15]} 34. Qxa2 {[%emt 0:01:22]} Rxa2 {[%emt 0:00:02]} 35. d5 {[%emt 0:01:00]} Bd6 {[%emt 0:00:32]} 36. Ne6 {[%emt 0:01:51]} Rb8 {[%emt 0:00:17]} 37. Nd4 {[%emt 0:00:36]} Rbb2 {[%emt 0:00:36]} 38. Rf1 {[%emt 0:00:38]} Rd2 {[%emt 0:00:24]} 39. Rxd2 {[%emt 0:00:34]} Rxd2 {[%emt 0:00:04]} 40. Nb3 {[%emt 0:00:29]} Rxd5 {[%emt 0:00:09]} 41. Ra1 {[%emt 0:30:16]} Rb5 {[%emt 0:09:04]} 42. Rxa6 {[%emt 0:00:00]} Bxg3 {[%emt 0:02:00]} 43. hxg3 {[%emt 0:00:00]} 1/2-1/2

[Event "GER-chW 2019"]
[Site "Magdeburg"]
[Date "2019.05.28"]
[Round "4.10"]
[White "Bashylina, Luisa"]
[Black "Ries, Jutta"]
[Result "0-1"]
[ECO "B02"]
[WhiteElo "1812"]
[BlackElo "2017"]
[Annotator "NA"]
[PlyCount "56"]
[EventDate "2019.05.26"]
[EventType "tourn"]
[EventCountry "GER"]
[SourceTitle "playchess.com"]
[Source "ChessBase"]
[SourceQuality "1"]
[TimeControl "40/5400+30:1800+30"]

1. e4 {[%emt 0:00:00]} Nf6 {[%emt 0:00:00]} 2. e5 {[%emt 0:00:00]} Nd5 {[%emt 0:00:00]} 3. Nc3 {[%emt 0:00:15]} e6 {[%emt 0:00:57]} 4. Nxd5 {[%emt 0:02:02]} exd5 {[%emt 0:00:02]} 5. d4 {[%emt 0:00:51]} d6 {[%emt 0:00:35]} 6. exd6 {[%emt 0:02:57]} Bxd6 {[%emt 0:00:36]} 7. Bd3 {[%emt 0:01:37]} Nc6 {[%emt 0:02:15]} 8. Be3 {[%emt 0:04:35]} Nb4 {[%emt 0:01:16]} 9. Ne2 {[%emt 0:02:33]} Nxd3+ {[%emt 0:02:48]} 10. Qxd3 {[%emt 0:00:14]} Qf6 {[%emt 0:01:35]} 11. O-O {[%emt 0:01:36]} c6 {[%emt 0:00:40]} 12. Rfe1 {[%emt 0:02:35]} Be6 {[%emt 0:06:28]} 13. Qd2 {[%emt 0:03:24]} h6 {[%emt 0:01:28]} 14. Bf4 {[%emt 0:02:29]} O-O-O {[%emt 0:11:14]} 15. Bxd6 {[%emt 0:00:40]} Rxd6 {[%emt 0:00:04]} 16. b4 {[%emt 0:06:47]} g5 {[%emt 0:03:33]} 17. a4 {[%emt 0:00:59]} h5 {[%emt 0:00:54]} 18. b5 {[%emt 0:00:26]} h4 {[%emt 0:09:05]} 19. Qb4 {[%emt 0:01:15]} Rd7 {[%emt 0:07:09]} 20. bxc6 {[%emt 0:00:38]} bxc6 {[%emt 0:00:06]} 21. Rab1 {[%emt 0:02:01]} Rc7 {[%emt 0:00:46]} 22. Qa5 {[%emt 0:14:38]} h3 {[%emt 0:11:01]} 23. Qa6+ {[%emt 0:00:18]} Kd8 {[%emt 0:01:03]} 24. Rb8+ {[%emt 0:03:50]} Bc8 {[%emt 0:11:38]} 25. Qd3 {[%emt 0:03:11]} hxg2 {[%emt 0:04:09]} 26. Nc1 {[%emt 0:04:17]} Qf4 {[%emt 0:21:57]} 27. Qg3 {[%emt 0:01:22]} Qxg3 {[%emt 0:00:02]} 28. hxg3 {[%emt 0:00:37]} Rh1+ {[%emt 0:00:08]} 0-1

[Event "GER-chW 2019"]
[Site "Magdeburg"]
[Date "2019.05.29"]
[Round "5.2"]
[White "Schulze, Lara"]
[Black "Schmidt, Jade"]
[Result "1-0"]
[ECO "C10"]
[WhiteElo "2160"]
[BlackElo "2062"]
[Annotator "ChessBase"]
[PlyCount "61"]
[EventDate "2019.05.26"]
[EventType "tourn"]
[EventCountry "GER"]
[SourceTitle "playchess.com"]
[Source "ChessBase"]
[SourceQuality "1"]
[TimeControl "40/5400+30:1800+30"]

1. e4 {[%emt 0:00:00]} e6 {[%emt 0:00:00]} 2. d4 {[%emt 0:00:00]} d5 {[%emt 0:00:00]} 3. Nd2 {[%emt 0:00:00]} dxe4 {[%emt 0:00:00]} 4. Nxe4 {[%emt 0:00:00]} Bd7 {[%emt 0:00:09]} 5. Nf3 {[%emt 0:00:36]} Bc6 {[%emt 0:00:10]} 6. Bd3 {[%emt 0:01:02]} Nd7 {[%emt 0:00:21]} 7. O-O {[%emt 0:01:39]} Ngf6 {[%emt 0:00:06]} 8. Ng3 {[%emt 0:00:38]} Bxf3 {[%emt 0:05:13]} 9. Qxf3 {[%emt 0:00:56]} c6 {[%emt 0:00:05]} 10. Re1 {[%emt 0:01:03]} Be7 {[%emt 0:01:36]} 11. c4 {[%emt 0:06:07]} O-O {[%emt 0:00:53]} 12. b3 {[%emt 0:01:55]} Re8 {[%emt 0:14:48]} 13. Bb2 {[%emt 0:02:35]} Bd6 {[%emt 0:12:18]} 14. Ne4 {[%emt 0:06:31]} Nxe4 {[%emt 0:01:02]} 15. Qxe4 {[%emt 0:00:10]} g6 {[%emt 0:22:02]} 16. Rad1 {[%emt 0:26:04]} Nf6 {[%emt 0:04:06]} 17. Qf3 {[%emt 0:03:43]} Nh5 {[%emt 0:02:02]} 18. Bf1 {[%emt 0:07:33]} Qc7 {[%emt 0:17:36]} 19. g3 {[%emt 0:06:02]} Bf8 {[%emt 0:00:23]} 20. d5 {[%emt 0:10:55]} exd5 {[%emt 0:03:36]} 21. Rxe8 {[%emt 0:01:21]} Rxe8 {[%emt 0:00:09]} 22. cxd5 {[%emt 0:00:35]} cxd5 {[%emt 0:01:50]} 23. Qxd5 {[%emt 0:00:29]} Ng7 {[%emt 0:11:15]} 24. Rc1 {[%emt 0:13:42]} Qe7 {[%emt 0:00:39]} 25. Qd4 {[%emt 0:01:10]} b6 {[%emt 0:00:37]} 26. h4 {[%emt 0:01:26]} Qd6 {[%emt 0:00:55]} 27. Qc3 {[%emt 0:04:12]} Rd8 {[%emt 0:00:51]} 28. Bc4 {[%emt 0:01:59]} Qd2 {[%emt 0:00:35]} 29. Qf6 {[%emt 0:01:05]} Qd6 {[%emt 0:00:29]} 30. Qxf7+ {[%emt 0:00:14]} Kh8 {[%emt 0:00:06]} 31. Qg8# {[%emt 0:00:11]} 1-0

[Event "GER-chW 2019"]
[Site "Magdeburg"]
[Date "2019.05.29"]
[Round "5.3"]
[White "Mehling, Katharina"]
[Black "Burchardt, Brigitte"]
[Result "1-0"]
[ECO "B94"]
[WhiteElo "1974"]
[BlackElo "2094"]
[Annotator "NA"]
[PlyCount "105"]
[EventDate "2019.05.26"]
[EventType "tourn"]
[EventCountry "GER"]
[SourceTitle "playchess.com"]
[Source "ChessBase"]
[SourceQuality "1"]
[TimeControl "40/5400+30:1800+30"]

1. e4 {[%emt 0:00:00]} c5 {[%emt 0:00:00]} 2. Nf3 {[%emt 0:00:00]} d6 {[%emt 0:00:00]} 3. d4 {[%emt 0:00:00]} cxd4 {[%emt 0:00:00]} 4. Nxd4 {[%emt 0:00:00]} Nf6 {[%emt 0:00:00]} 5. Nc3 {[%emt 0:00:00]} a6 {[%emt 0:00:00]} 6. Bg5 {[%emt 0:00:04]} Nbd7 {[%emt 0:00:02]} 7. Qe2 {[%emt 0:00:17]} e6 {[%emt 0:18:40]} 8. O-O-O {[%emt 0:01:34]} Be7 {[%emt 0:01:24]} 9. f4 {[%emt 0:01:16]} O-O {[%emt 0:05:32]} 10. g4 {[%emt 0:01:08]} Qc7 {[%emt 0:07:04]} 11. Bg2 {[%emt 0:02:45] B98: Sicilian Najdorf: 6 Bg5 e6 7 f4 Be7, sidelines} Nb6 {[%emt 0:04:41]} 12. h4 {[%emt 0:05:40]} Rd8 $146 {[%emt 0:12:38]} ({Predecessor:} 12... Nc4 13. Rh3 Kh8 14. b3 Na5 15. e5 dxe5 16. fxe5 Ba3+ 17. Kb1 Nd7 18. h5 h6 19. Bf4 Be7 20. Ne4 Nxe5 21. g5 f6 22. gxh6 gxh6 23. Rg3 {1-0 (23) Shirov,A (2726)-Fercec,N (2481) Kallithea 2008}) 13. f5 {[%emt 0:11:40]} Nc4 {[%emt 0:03:30]} 14. Kb1 {[%emt 0:09:39]} Ne5 {[%emt 0:02:35]} 15. Bxf6 {[%emt 0:00:48]} gxf6 {[%emt 0:07:01]} 16. g5 {[%emt 0:03:15]} Bd7 {[%emt 0:05:17]} 17. Bh3 {[%emt 0:05:13]} Qc8 {[%emt 0:01:39]} 18. Qh5 {[%emt 0:05:14]} Kh8 {[%emt 0:01:06]} 19. Rdf1 {[%emt 0:08:43]} Rg8 {[%emt 0:06:38]} 20. fxe6 {[%emt 0:04:05]} fxe6 {[%emt 0:00:11]} 21. gxf6 {[%emt 0:00:55]} Bf8 {[%emt 0:00:37]} 22. Rhg1 {[%emt 0:03:30]} Rxg1 {[%emt 0:04:05]} 23. Rxg1 {[%emt 0:00:12]} Qe8 {[%emt 0:03:23]} 24. Qg5 {[%emt 0:04:59]} Qf7 {[%emt 0:00:07]} 25. Nce2 {[%emt 0:03:06]} Re8 {[%emt 0:03:59]} 26. c3 {[%emt 0:08:22]} Bc6 {[%emt 0:01:32]} 27. Bg2 $2 {[%emt 0:02:41]} (27. Nf4 $18 {has better winning chances.}) 27... h6 {[%emt 0:02:10]} 28. Qf4 {[%emt 0:01:27]} Qh7 {[%emt 0:00:27]} 29. Nxc6 {[%emt 0:01:06]} bxc6 {[%emt 0:00:19]} 30. Nd4 {[%emt 0:10:20]} c5 {[%emt 0:02:29]} 31. Nf3 {[%emt 0:02:05]} Nf7 {[%emt 0:00:31]} 32. Ka1 {[%emt 0:00:24]} e5 {[%emt 0:01:10]} 33. Qg4 {[%emt 0:00:57]} h5 {[%emt 0:02:10]} 34. Qd7 {[%emt 0:00:43]} Rd8 {[%emt 0:00:40]} 35. Qe6 {[%emt 0:00:18]} Nh6 {[%emt 0:00:43]} 36. Ng5 {[%emt 0:00:38]} Qd7 {[%emt 0:00:44]} 37. Bh3 {[%emt 0:00:47]} Qxe6 {[%emt 0:00:24]} 38. Bxe6 {[%emt 0:00:26]} Rb8 {[%emt 0:01:43]} 39. Kb1 {[%emt 0:00:55]} a5 {[%emt 0:01:20]} 40. Kc2 {[%emt 0:00:26]} a4 {[%emt 0:00:28]} 41. Rg2 {[%emt 0:30:44]} d5 {[%emt 0:31:51]} 42. exd5 {[%emt 0:00:35]} Bd6 {[%emt 0:00:00]} 43. Ne4 {[%emt 0:00:00]} Bf8 {[%emt 0:00:00]} 44. d6 {[%emt 0:00:00]} Rd8 {[%emt 0:00:00]} 45. d7 {[%emt 0:00:00]} Ng4 $18 {[%emt 0:00:00]} 46. Kd3 {[%emt 0:00:00]} c4+ {[%emt 0:00:00]} 47. Ke2 {[%emt 0:00:00]} Rb8 {[%emt 0:00:00]} 48. Kf3 {[%emt 0:00:00]} a3 {[%emt 0:00:00]} 49. bxa3 {[%emt 0:00:00]} Bxa3 {[%emt 0:00:00]} 50. Rd2 {[%emt 0:00:00]} Rd8 {[%emt 0:00:00]} 51. Bxg4 {[%emt 0:00:00]} hxg4+ {[%emt 0:00:00]} 52. Kxg4 {[%emt 0:00:00]} Bf8 {[%emt 0:00:00]} 53. Ng5 {[%emt 0:00:00]} 1-0

[Event "GER-chW 2019"]
[Site "Magdeburg"]
[Date "2019.05.29"]
[Round "5.4"]
[White "Koehler, Inken"]
[Black "Kunze, Kerstin"]
[Result "1/2-1/2"]
[ECO "B24"]
[WhiteElo "1979"]
[BlackElo "2066"]
[Annotator "NA"]
[PlyCount "68"]
[EventDate "2019.05.26"]
[EventType "tourn"]
[EventCountry "GER"]
[SourceTitle "playchess.com"]
[Source "ChessBase"]
[SourceQuality "1"]
[TimeControl "40/5400+30:1800+30"]

1. e4 {[%emt 0:00:00]} c5 {[%emt 0:00:00]} 2. Nc3 {[%emt 0:00:00]} Nc6 {[%emt 0:00:00]} 3. g3 {[%emt 0:00:00]} g6 {[%emt 0:00:15]} 4. Bg2 {[%emt 0:00:00]} Bg7 {[%emt 0:00:13]} 5. d3 {[%emt 0:00:12]} Nf6 {[%emt 0:07:36]} 6. f4 {[%emt 0:00:37]} d6 {[%emt 0:06:36]} 7. Nge2 {[%emt 0:03:28]} O-O {[%emt 0:01:40]} 8. O-O {[%emt 0:00:25]} Rb8 {[%emt 0:08:52]} 9. Kh1 {[%emt 0:04:30]} Bd7 {[%emt 0:07:25]} 10. Be3 {[%emt 0:02:21]} b5 {[%emt 0:28:29]} 11. Qd2 {[%emt 0:03:14]} b4 {[%emt 0:01:32]} 12. Nd1 {[%emt 0:00:14]} Qc8 {[%emt 0:00:48]} 13. f5 {[%emt 0:12:36]} Ng4 {[%emt 0:03:22]} 14. fxg6 {[%emt 0:06:23]} fxg6 {[%emt 0:00:40]} 15. Bf4 {[%emt 0:03:18]} e5 {[%emt 0:11:37]} 16. Bg5 {[%emt 0:06:55]} Rxf1+ {[%emt 0:04:44]} 17. Bxf1 {[%emt 0:00:06]} h6 {[%emt 0:00:29]} 18. Be3 {[%emt 0:00:09]} Nd4 {[%emt 0:04:18]} 19. Bg2 {[%emt 0:04:32]} Be6 {[%emt 0:01:19]} 20. Ng1 {[%emt 0:04:54]} Qd7 {[%emt 0:00:43]} 21. h3 {[%emt 0:02:54]} Nxe3 {[%emt 0:00:31]} 22. Nxe3 {[%emt 0:00:06]} h5 {[%emt 0:00:22]} 23. Nd5 {[%emt 0:02:49]} Bxd5 {[%emt 0:00:26]} 24. exd5 {[%emt 0:00:04]} Kh7 {[%emt 0:00:28]} 25. Be4 {[%emt 0:12:03]} Nf5 {[%emt 0:03:23]} 26. Kh2 {[%emt 0:04:27]} Bh6 {[%emt 0:00:17]} 27. Qe2 {[%emt 0:00:59]} Rf8 {[%emt 0:00:53]} 28. Nf3 {[%emt 0:02:20]} Kg7 {[%emt 0:00:43]} 29. Rg1 {[%emt 0:08:06]} Be3 {[%emt 0:00:27]} 30. Rf1 {[%emt 0:00:59]} Bh6 {[%emt 0:00:12]} 31. Rg1 {[%emt 0:03:06]} Nd4 {[%emt 0:00:36]} 32. Nxd4 {[%emt 0:00:47]} cxd4 {[%emt 0:00:29]} 33. Rf1 {[%emt 0:03:27]} Rxf1 {[%emt 0:00:55]} 34. Qxf1 {[%emt 0:00:04]} Qa4 1/2-1/2

[Event "GER-chW 2019"]
[Site "Magdeburg"]
[Date "2019.05.29"]
[Round "5.5"]
[White "Kopylov, Luba"]
[Black "Von Herman, Brigitte"]
[Result "0-1"]
[ECO "A40"]
[WhiteElo "2078"]
[BlackElo "2064"]
[Annotator "NA"]
[PlyCount "116"]
[EventDate "2019.05.26"]
[EventType "tourn"]
[EventCountry "GER"]
[SourceTitle "playchess.com"]
[Source "ChessBase"]
[SourceQuality "1"]
[TimeControl "40/5400+30:1800+30"]

1. d4 {[%emt 0:00:00]} Nf6 {[%emt 0:00:00]} 2. c4 {[%emt 0:00:00]} e6 {[%emt 0:00:04]} 3. g3 {[%emt 0:00:00]} Bb4+ {[%emt 0:00:51]} 4. Bd2 {[%emt 0:00:12]} Qe7 {[%emt 0:03:58]} 5. Bg2 {[%emt 0:02:34]} Nc6 {[%emt 0:05:12]} 6. a3 {[%emt 0:02:05]} Bxd2+ {[%emt 0:00:14] E00: Catalan Bogo-Indian (3 g3 Bb4+)} 7. Qxd2 {[%emt 0:00:10]} a5 {[%emt 0:05:42]} (7... O-O 8. e3 d6 9. Ne2 e5 10. O-O Re8 11. d5 Nb8 12. e4 a5 13. Nbc3 Na6 14. b4 {½-½ (24) Svane,R (2595)-Anand,V (2771) Douglas 2018}) 8. Nc3 {[%emt 0:07:29]} d6 {[%emt 0:01:13]} 9. e4 {[%emt 0:06:41]} O-O {[%emt 0:04:02]} 10. Nge2 {[%emt 0:01:49]} e5 {[%emt 0:04:50]} 11. d5 {[%emt 0:00:52]} Nb8 {[%emt 0:00:18]} 12. b3 $146 {[%emt 0:00:50]} ({Predecessor:} 12. Nb5 a4 13. Qc2 Ra5 14. Nc1 {1-0 (53) Mester,G (2440)-Bednay,D (2301) Hungary 2008}) 12... Na6 {[%emt 0:00:26]} 13. O-O {[%emt 0:00:38]} Nc5 {[%emt 0:06:33]} 14. Qc2 {[%emt 0:04:52]} Bd7 {[%emt 0:04:25]} 15. b4 {[%emt 0:01:29]} Na6 {[%emt 0:01:11]} 16. Qb1 {[%emt 0:05:36]} c6 {[%emt 0:00:57]} 17. Rd1 {[%emt 0:07:33]} axb4 {[%emt 0:08:13]} 18. axb4 {[%emt 0:02:59]} c5 {[%emt 0:00:23]} 19. bxc5 {[%emt 0:02:04]} Nxc5 {[%emt 0:00:28]} 20. Qb6 {[%emt 0:00:42]} Rfc8 {[%emt 0:04:50]} 21. Ra5 {[%emt 0:04:08]} Ne8 {[%emt 0:02:17]} 22. Rda1 {[%emt 0:10:47]} Rxa5 {[%emt 0:01:10]} 23. Rxa5 {[%emt 0:00:07]} Qd8 {[%emt 0:00:26]} 24. Qxd8 {[%emt 0:00:27]} Rxd8 {[%emt 0:00:05]} 25. f4 {[%emt 0:04:41]} f6 {[%emt 0:00:42]} 26. Kf2 {[%emt 0:02:39]} Nc7 {[%emt 0:00:32]} 27. Ke3 {[%emt 0:03:20]} Ra8 {[%emt 0:01:25]} 28. Rxa8+ {[%emt 0:00:44]} Nxa8 {[%emt 0:00:07]} 29. Nc1 {[%emt 0:00:30]} Nc7 {[%emt 0:10:04]} 30. Nd3 {[%emt 0:01:46]} N7a6 {[%emt 0:02:52]} 31. Nb5 {[%emt 0:00:20]} Nxd3 {[%emt 0:01:06]} 32. Kxd3 {[%emt 0:00:31]} Nc5+ {[%emt 0:01:03]} 33. Kc3 {[%emt 0:00:33]} Bxb5 {[%emt 0:00:37]} 34. cxb5 {[%emt 0:00:06]} b6 {[%emt 0:00:15]} 35. Kc2 {[%emt 0:00:30]} Kf7 {[%emt 0:01:41]} 36. Bf3 {[%emt 0:00:25]} g6 {[%emt 0:01:52]} 37. fxe5 {[%emt 0:00:51]} dxe5 {[%emt 0:02:34]} 38. g4 {[%emt 0:00:40]} Nb7 {[%emt 0:05:32]} 39. Kc3 {[%emt 0:02:37]} Nd6 {[%emt 0:00:11]} 40. Kb4 {[%emt 0:00:07]} Ke7 {[%emt 0:03:47]} 41. h4 {[%emt 0:33:37]} h6 {[%emt 0:31:43]} 42. Ka4 {[%emt 0:04:03]} f5 {[%emt 0:03:13]} 43. gxf5 {[%emt 0:09:00]} gxf5 {[%emt 0:00:11]} 44. Kb4 {[%emt 0:00:59]} Nxe4 {[%emt 0:09:49]} 45. Bxe4 {[%emt 0:06:04]} fxe4 {[%emt 0:00:07]} 46. h5 {[%emt 0:00:15]} Kd7 {[%emt 0:00:16]} 47. Kc3 {[%emt 0:00:56]} Kc7 {[%emt 0:00:33]} 48. Kd2 {[%emt 0:00:48]} Kd6 {[%emt 0:00:18]} 49. Ke2 {[%emt 0:00:10]} Kc5 {[%emt 0:01:16]} 50. Kd2 {[%emt 0:00:11]} Kxb5 {[%emt 0:01:01]} 51. Ke3 {[%emt 0:00:05]} Kc5 {[%emt 0:00:34]} 52. Kxe4 {[%emt 0:00:05]} Kd6 {[%emt 0:00:08]} 53. Kf5 {[%emt 0:00:24]} b5 {[%emt 0:00:17]} 54. Kg6 {[%emt 0:00:07]} b4 {[%emt 0:00:10]} 55. Kxh6 {[%emt 0:00:06]} b3 {[%emt 0:00:21]} 56. Kg7 {[%emt 0:00:04]} b2 {[%emt 0:00:10]} 57. h6 {[%emt 0:00:03]} b1=Q {[%emt 0:00:07]} 58. h7 {[%emt 0:00:05]} Qh1 {[%emt 0:00:43]} 0-1

[Event "GER-chW 2019"]
[Site "Magdeburg"]
[Date "2019.05.29"]
[Round "5.6"]
[White "Braun, Kristin"]
[Black "Erofeev, Anastasia"]
[Result "1/2-1/2"]
[ECO "B41"]
[WhiteElo "1895"]
[BlackElo "2003"]
[Annotator "NA"]
[PlyCount "121"]
[EventDate "2019.05.26"]
[EventType "tourn"]
[EventCountry "GER"]
[SourceTitle "playchess.com"]
[Source "ChessBase"]
[SourceQuality "1"]
[TimeControl "40/5400+30:1800+30"]

1. e4 {[%emt 0:00:00]} c5 {[%emt 0:00:00]} 2. Nf3 e6 {[%emt 0:00:04]} 3. d4 cxd4 {[%emt 0:00:30]} 4. Nxd4 a6 {[%emt 0:00:30]} 5. c4 Qc7 {[%emt 0:00:30]} 6. a3 Nf6 {[%emt 0:00:30]} 7. Nc3 b6 {[%emt 0:00:30]} 8. Be2 {B41: Sicilian: Kan Variation: 5 c4} (8. Be3 Bb7 9. f3 d6 10. Rc1 Nbd7 11. Be2 Rc8 12. O-O Be7 13. b4 Qb8 14. Qd2 Bd8 15. Kh1 h5 16. Nb3 {1-0 (36) Karjakin,S (2753)-Smirin,I (2609) St Petersburg 2018}) 8... Bb7 {[%emt 0:00:30]} 9. Qd3 d6 {[%emt 0:00:30]} 10. O-O Nbd7 {[%emt 0:00:30]} 11. Qc2 Be7 {[%emt 0:00:30]} 12. Be3 O-O {[%emt 0:00:30]} 13. Rfd1 Rac8 {[%emt 0:00:30]} 14. Rac1 Qb8 {[%emt 0:00:30]} 15. Qb1 Rfe8 {[%emt 0:00:30]} 16. f3 Bd8 $146 {[%emt 0:00:30]} ({Predecessor:} 16... d5 17. cxd5 exd5 {0-1 (40) Erdos,V (2425)-Hoffmann,M (2435) Budapest 2003}) 17. b4 Bc7 {[%emt 0:00:30]} 18. g3 d5 {[%emt 0:00:30]} 19. Bd3 $2 (19. cxd5 $11 exd5 20. f4) 19... dxc4 {[%emt 0:00:30]} 20. Bc2 $2 (20. Bf1 $17) 20... h5 {[%emt 0:00:30]} 21. Nde2 $19 b5 {[%emt 0:00:30]} 22. a4 Bc6 {[%emt 0:00:30]} 23. Nd4 Bb6 {[%emt 0:00:30]} 24. Kh1 Bxd4 {[%emt 0:00:30]} 25. Bxd4 e5 {[%emt 0:00:30]} 26. Be3 Nf8 {[%emt 0:00:30]} 27. a5 Ne6 {[%emt 0:00:30]} 28. Nd5 Nd7 {[%emt 0:00:30]} 29. Rd2 Qb7 {[%emt 0:00:30]} 30. Rcd1 Rcd8 {[%emt 0:00:30]} 31. Qb2 Qc8 {[%emt 0:00:30]} 32. Qc3 Nef8 {[%emt 0:00:30]} 33. Bf2 Ng6 {[%emt 0:00:30]} 34. Ne3 Nf6 {[%emt 0:00:30]} 35. Nd5 Bxd5 {[%emt 0:00:30]} 36. exd5 Ne7 {[%emt 0:00:30]} 37. d6 Ng6 {[%emt 0:00:30]} 38. Bb6 Qb7 {[%emt 0:00:30]} 39. Bxd8 Rxd8 {[%emt 0:00:30]} 40. Bxg6 fxg6 {[%emt 0:00:30]} 41. Kg2 e4 {[%emt 0:30:30]} 42. Rd4 exf3+ {[%emt 0:00:30]} 43. Qxf3 Qxf3+ {[%emt 0:00:30]} 44. Kxf3 Ng4 {[%emt 0:00:30]} 45. h3 Ne5+ {[%emt 0:00:30]} 46. Ke3 Nc6 {[%emt 0:00:30]} 47. Re4 Rd7 {[%emt 0:00:30]} 48. Kf4 Nxb4 {[%emt 0:00:30]} 49. Re7 Rxe7 {[%emt 0:00:30]} 50. dxe7 Kf7 {[%emt 0:00:30]} 51. Rd6 g5+ {[%emt 0:00:30]} 52. Ke3 Kxe7 {[%emt 0:00:30]} 53. Rg6 Kf7 {[%emt 0:00:30]} 54. Rxg5 Nc6 {[%emt 0:00:30]} 55. Rxh5 Nxa5 {[%emt 0:00:30]} 56. Kd4 Nb7 {[%emt 0:00:30]} 57. Rd5 Ke6 {[%emt 0:00:30]} 58. Rg5 Kf6 {[%emt 0:00:30]} 59. Rd5 Ke6 {[%emt 0:00:30]} 60. Rg5 Kf6 {[%emt 0:00:30]} 61. Rd5 1/2-1/2